fUSD/lending_fUSD_20260221
["ID","MTS","AMOUNT","RATE_DAILY","PERIOD"]
[406251670,1771661440731,-500.0,0.00020873,2]
[406251672,1771661440740,-500.0,0.00020873,2]
[406251674,1771661440749,-162.05016959,0.00020873,2]
[406251676,1771661440758,-500.0,0.00020873,2]
[406251678,1771661440768,-500.0,0.00020873,2]
[406251680,1771661440777,-500.0,0.00020873,2]
[406251682,1771661440786,-500.0,0.00020873,2]
[406251684,1771661440796,-500.0,0.00020873,2]
[406251686,1771661440805,-277.98755717,0.00020873,2]
[406251688,1771661440814,-500.0,0.00020873,2]
[406251690,1771661440823,-500.0,0.00020873,2]
[406251692,1771661440832,-500.0,0.00020873,2]
[406251694,1771661440841,-500.0,0.00020873,2]
[406251696,1771661440851,-500.0,0.00020873,2]
[406251698,1771661440860,-500.0,0.00020873,2]
[406251700,1771661440870,-308.41743172,0.00020873,2]
[406251702,1771661440879,-500.0,0.00020873,2]
[406251704,1771661440888,-209.51372498,0.00020873,2]
[406251706,1771661440897,-161.96682158,0.00020873,2]
[406251708,1771661440906,-500.0,0.00020873,2]
[406251710,1771661440916,-500.0,0.00020873,2]
[406251712,1771661440926,-500.0,0.00020873,2]
[406251714,1771661440935,-500.0,0.00020873,2]
[406251716,1771661440944,-500.0,0.00020873,2]
[406251718,1771661440954,-162.09416369,0.00020873,2]
[406251720,1771661440963,-500.0,0.00020873,2]
[406251722,1771661440972,-163.64801868,0.00020873,2]
[406251724,1771661440981,-163.87488715,0.00020873,2]
[406251726,1771661440990,-500.0,0.00020873,2]
[406251728,1771661441000,-500.0,0.00020873,2]
[406251730,1771661441009,-500.0,0.00020873,2]
[406251732,1771661441019,-500.0,0.00020873,2]
[406251734,1771661441028,-619.14973919,0.00020873,2]
[406251736,1771661441038,-500.0,0.00020873,2]
[406251738,1771661441047,-500.0,0.00020873,2]
[406251740,1771661441057,-500.0,0.00020873,2]
[406251742,1771661441066,-161.02365672,0.00020873,2]
[406251744,1771661441075,-337.50400645,0.00020873,2]
[406251746,1771661441084,-335.40104362,0.00020873,2]
[406251748,1771661441094,-523.93558556,0.00020873,2]
[406251750,1771661441103,-500.0,0.00020873,2]
[406251752,1771661441112,-500.0,0.00020873,2]
[406251754,1771661441122,-500.0,0.00020873,2]
[406251756,1771661441131,-500.0,0.00020873,2]
[406251759,1771661441143,-500.0,0.00020873,2]
[406251761,1771661441153,-500.0,0.00020873,2]
[406251763,1771661441162,-500.0,0.00020873,2]
[406251764,1771661441171,-500.0,0.00020873,2]
[406251766,1771661441180,-500.0,0.00020873,2]
[406251769,1771661441188,-500.0,0.00020873,2]
[406251771,1771661441198,-500.0,0.00020873,2]
[406251772,1771661441207,-500.0,0.00020873,2]
[406251775,1771661441216,-500.0,0.00020873,2]
[406251777,1771661441225,-500.0,0.00020873,2]
[406251779,1771661441234,-500.0,0.00020873,2]
[406251780,1771661441243,-500.0,0.00020873,2]
[406251783,1771661441252,-500.0,0.00020873,2]
[406251785,1771661441262,-500.0,0.00020873,2]
[406251787,1771661441270,-500.0,0.00020873,2]
[406251789,1771661441279,-500.0,0.00020873,2]
[406251791,1771661441288,-500.0,0.00020873,2]
[406251793,1771661441297,-500.0,0.00020873,2]
[406251795,1771661441306,-1500.0,0.00021032,2]
[406251797,1771661441315,-34914.56487139,0.0002121,2]
[406251799,1771661441324,-2591.79503743,0.0002126,2]
[406251801,1771661441334,-1003.49517713,0.00021421,2]
[406251803,1771661441343,-500.0,0.00021421,2]
[406251805,1771661441352,-1003.54531592,0.00021421,2]
[406251807,1771661441362,-503.23447762,0.00021421,2]
[406251809,1771661441370,-1000.0,0.00021421,2]
[406251811,1771661441379,-1005.69992817,0.00021421,2]
[406251813,1771661441389,-398.86702344,0.00021421,2]
[406251815,1771661441397,-1000.0,0.00021421,2]
[406251816,1771661441406,-990.36189657,0.00021421,2]
[406251819,1771661441416,-501.85276427,0.00021421,2]
[406251821,1771661441425,-1000.0,0.00021421,2]
[406251823,1771661441434,-1000.0,0.00021421,2]
[406251825,1771661441444,-1000.0,0.00021421,2]
[406251827,1771661441453,-1000.0,0.00021421,2]
[406251829,1771661441462,-504.46749239,0.00021421,2]
[406251831,1771661441471,-504.6633067,0.00021421,2]
[406251833,1771661441480,-502.03500133,0.00021421,2]
[406251834,1771661441489,-1000.0,0.00021421,2]
[406251836,1771661441498,-1000.0,0.00021421,2]
[406251839,1771661441508,-1000.0,0.00021421,2]
[406251841,1771661441518,-1000.0,0.00021421,2]
[406251843,1771661441527,-500.95146285,0.00021421,2]
[406251844,1771661441536,-1000.0,0.00021421,2]
[406251845,1771661441546,-1000.0,0.00021421,2]
[406251846,1771661441555,-379.78728098,0.00021421,2]
[406251847,1771661441565,-351.48027425,0.00021421,2]
[406251848,1771661441574,-503.79470096,0.00021421,2]
[406251849,1771661441583,-700.36533569,0.00021421,2]
[406251850,1771661441593,-1000.0,0.00021421,2]
[406251851,1771661441602,-466.50650868,0.00021421,2]
[406251853,1771661441612,-603.42677279,0.00021421,2]
[406251855,1771661441623,-503.28614098,0.00021421,2]
[406251857,1771661441633,-1000.0,0.00021421,2]
[406251859,1771661441643,-1000.0,0.00021421,2]
[406251861,1771661441652,-1003.07804053,0.00021421,2]
[406251862,1771661441661,-1004.49526467,0.00021421,2]
[406251865,1771661441673,-504.34899307,0.00021421,2]
[406251867,1771661441682,-1000.0,0.00021421,2]
[406251868,1771661441690,-373.81925548,0.00021421,2]
[406251870,1771661441702,-702.77443873,0.00021421,2]
[406251873,1771661441711,-1003.84941121,0.00021421,2]
[406251875,1771661441721,-502.30459908,0.00021421,2]
[406251876,1771661441731,-151.0,0.00021558,2]
[406251878,1771661441740,-151.0,0.00021558,2]
[406251881,1771661441750,-151.0,0.00021558,2]
[406251883,1771661441759,-151.0,0.00021558,2]
[406251884,1771661441767,-151.0,0.00021558,2]
[406251886,1771661441779,-151.0,0.00021558,2]
[406251889,1771661441788,-151.0,0.00021558,2]
[406251890,1771661441797,-151.0,0.00021558,2]
[406251893,1771661441806,-151.0,0.00021558,2]
[406251895,1771661441816,-151.0,0.00021558,2]
[406251897,1771661441825,-151.0,0.00021558,2]
[406251898,1771661441835,-151.0,0.00021558,2]
[406251900,1771661441845,-151.0,0.00021558,2]
[406251903,1771661441854,-151.0,0.00021558,2]
[406251904,1771661441863,-151.0,0.00021558,2]
[406251907,1771661441872,-151.0,0.00021558,2]
[406251908,1771661441881,-151.0,0.00021558,2]
[406251911,1771661441890,-151.0,0.00021558,2]
[406251912,1771661441899,-151.0,0.00021558,2]
[406251915,1771661441908,-151.0,0.00021558,2]
[406251917,1771661441917,-547.0,0.00021761,2]
[406251919,1771661441926,-17823.28066971,0.00021863,2]
[406251920,1771661441935,-500.0,0.00021968,2]
[406251936,1771661442080,-345.648398,0.00021968,2]
[406251938,1771661442089,-1500.0,0.00021968,2]
[406251940,1771661442098,-1214.60757042,0.00021968,2]
[406251942,1771661442107,-507.85167987,0.00021968,2]
[406251944,1771661442116,-502.4507475,0.00021968,2]
[406251946,1771661442126,-501.34642991,0.00021968,2]
[406251949,1771661442135,-1001.06979022,0.00021968,2]
[406251951,1771661442144,-1000.0,0.00021968,2]
[406251953,1771661442154,-503.50237615,0.00021968,2]
[406251955,1771661442164,-1500.0,0.00021968,2]
[406251957,1771661442175,-343.47413348,0.00021968,2]
[406251959,1771661442184,-1500.0,0.00021968,2]
[406251961,1771661442194,-1008.69934728,0.00021968,2]
[406251963,1771661442203,-503.21373635,0.00021968,2]
[406251965,1771661442212,-1002.04789139,0.00021968,2]
[406251967,1771661442221,-4609.0,0.00022239,2]
[406251969,1771661442231,-648.310245,0.00022372,30]
[406251971,1771661442240,-292.32342035,0.00022386,2]
[406251973,1771661442249,-2000.0,0.00022516,2]
[406251975,1771661442259,-335.83213113,0.00022516,2]
[406251977,1771661442269,-501.41044564,0.00022516,2]
[406251979,1771661442278,-1600.0,0.00022631,2]
[406251981,1771661442287,-573.47,0.00022661,2]
[406251983,1771661442296,-894.0,0.00022769,2]
[406251985,1771661442305,-894.0,0.0002285,2]
[406251987,1771661442315,-151.00118991,0.00023009,2]
[406251989,1771661442324,-500.0,0.00023064,2]
[406251991,1771661442333,-518.82465,0.00023064,2]
[406251993,1771661442342,-500.0,0.00023064,2]
[406251995,1771661442351,-500.0,0.00023064,2]
[406251997,1771661442361,-500.0,0.00023064,2]
[406251999,1771661442370,-500.0,0.00023064,2]
[406252001,1771661442380,-500.0,0.00023064,2]
[406252003,1771661442390,-500.0,0.00023064,2]
[406252005,1771661442399,-500.0,0.00023064,2]
[406252007,1771661442409,-512.22,0.00023064,2]
[406252009,1771661442418,-500.0,0.00023064,2]
[406252011,1771661442427,-500.0,0.00023064,2]
[406252013,1771661442436,-500.0,0.00023064,2]
[406252015,1771661442445,-500.0,0.00023064,2]
[406252017,1771661442454,-500.0,0.00023064,2]
[406252019,1771661442464,-500.0,0.00023064,2]
[406252021,1771661442473,-500.0,0.00023064,2]
[406252023,1771661442482,-500.0,0.00023064,2]
[406252025,1771661442491,-213.57676851,0.00023064,2]
[406252027,1771661442500,-894.0,0.00023064,2]
[406252029,1771661442509,-894.0,0.00023116,2]
[406252031,1771661442519,-894.0,0.0002319,2]
[406252032,1771661442529,-894.0,0.00023201,2]
[406252033,1771661442538,-894.0,0.00023452,2]
[406252034,1771661442547,-1798.904056,0.00023551,30]
[406252035,1771661442557,-894.0,0.00023551,2]
[406252036,1771661442566,-894.0,0.00023645,2]
[406252037,1771661442575,-894.0,0.00023648,2]
[406252038,1771661442585,-894.0,0.00023653,2]
[406252039,1771661442594,-3166.37334768,0.00023686,2]
[406252040,1771661442603,-487.0,0.00023713,2]
[406252042,1771661442612,-593.7,0.00023713,2]
[406252044,1771661442623,-894.0,0.00023713,2]
[406252046,1771661442637,-894.0,0.00023778,2]
[406252048,1771661442646,-894.0,0.00023847,2]
[406252050,1771661442655,-151.00118991,0.00023967,2]
[406252052,1771661442667,-894.0,0.00024004,2]
[406252054,1771661442676,-894.0,0.00024143,2]
[406252056,1771661442686,-894.0,0.00024171,2]
[406252058,1771661442695,-894.0,0.00024179,2]
[406252060,1771661442704,-34914.56487139,0.00024213,2]
[406252062,1771661442713,-894.0,0.00024244,2]
[406252064,1771661442722,-894.0,0.00024275,2]
[406252066,1771661442731,-894.0,0.00024279,2]
[406252068,1771661442741,-894.0,0.00024283,2]
[406252070,1771661442751,-6453.0,0.00024458,2]
[406252072,1771661442760,-894.0,0.00024546,2]
[406252074,1771661442769,-894.0,0.00024566,2]
[406252076,1771661442779,-193.45592901,0.0002463,2]
[406252078,1771661442788,-1000.0,0.00024658,2]
[406252080,1771661442797,-150.0,0.00024658,2]
[406252082,1771661442807,-151.00118991,0.00024926,2]
[406252084,1771661442816,-894.0,0.00024937,2]
[406252086,1771661442825,-17823.28066971,0.00025142,2]
[406252089,1771661442841,-1600.0,0.00025146,120]
[406252090,1771661442855,-154.3784608,0.00025149,5]
[406252091,1771661442865,-3359.1065422,0.00025305,2]
[406252092,1771661442874,-3304.7,0.00025634,2]
[406252093,1771661442884,-151.00118991,0.00025885,2]
[406252094,1771661442894,-150.0,0.0002589,2]
[406252095,1771661442904,-1000.0,0.00026024,2]
[406252096,1771661442913,-189.67,0.00026397,12]
[406252097,1771661442923,-151.00118991,0.00026843,2]
[406252098,1771661442934,-8012.0,0.00026898,2]
[406252099,1771661442944,-150.0,0.00027185,2]
[406252100,1771661442953,-34914.56487139,0.00027216,2]
[406252101,1771661442963,-257.94123868,0.0002737,30]
[406252102,1771661442974,-1600.0,0.00027661,120]
[406252103,1771661442984,-151.00118991,0.00027802,2]
[406252104,1771661442994,-378.12,0.00027882,2]
[406252105,1771661443003,-600.0,0.000279,10]
[406252106,1771661443013,-3166.37334768,0.00027927,2]
[406252107,1771661443023,-9999.99,0.00028203,2]
[406252108,1771661443032,-23745.81,0.00028203,2]
[406252109,1771661443042,-184.17,0.00028386,2]
[406252110,1771661443052,-17823.28066971,0.00028421,2]
[406252111,1771661443067,-150.0,0.00028544,2]
[406252112,1771661443084,-151.00118991,0.00028761,2]
[406252113,1771661443094,-516.0,0.000288,13]
[406252114,1771661443104,-600.0,0.00028894,2]
[406252115,1771661443113,-300.72,0.00028894,2]
[406252116,1771661443123,-1000.0,0.00029,2]
[406252117,1771661443132,-150.0,0.00029175,5]
[406252118,1771661443142,-159.9049081,0.00029175,5]
[406252119,1771661443151,-200.0,0.00029175,19]
[406252120,1771661443161,-151.00118991,0.0002972,2]
[406252121,1771661443170,-150.96509003,0.00029723,5]
[406252122,1771661443180,-1512.723906,0.0002983,30]
[406252123,1771661443189,-150.0,0.00029971,2]
[406252124,1771661443199,-2028.9148266,0.00030047,2]
[406252125,1771661443208,-11386.27086973,0.00030047,2]
[406252126,1771661443223,-1600.0,0.00030175,120]
[406252127,1771661443233,-34914.56487139,0.0003022,2]
[406252128,1771661443243,-151.00118991,0.00030678,2]
[406252129,1771661443252,-2798.295199,0.00031401,30]
[406252130,1771661443262,-150.0,0.0003147,2]
[406252131,1771661443272,-151.00118991,0.00031637,2]
[406252132,1771661443282,-300.0,0.000317,10]
[406252133,1771661443292,-666.0,0.000317,10]
[406252134,1771661443301,-17823.28066971,0.00031701,2]
[406252135,1771661443311,-200.0,0.00031954,30]
[406252136,1771661443321,-338.0,0.00032,120]
[406252137,1771661443330,-160.0,0.00032,30]
[406252138,1771661443340,-222.631314,0.00032039,30]
[406252139,1771661443350,-3166.37334768,0.00032167,2]
[406252140,1771661443359,-151.00118991,0.00032596,2]
[406252141,1771661443369,-1000.0,0.000327,2]
[406252142,1771661443380,-2000.0,0.000327,2]
[406252143,1771661443390,-250.0,0.00032876,120]
[406252144,1771661443400,-250.0,0.00032876,120]
[406252145,1771661443409,-250.0,0.00032876,120]
[406252146,1771661443421,-250.0,0.00032876,120]
[406252147,1771661443431,-250.0,0.00032876,120]
[406252148,1771661443440,-250.0,0.00032876,120]
[406252149,1771661443449,-250.0,0.00032876,120]
[406252150,1771661443459,-250.73232894,0.00032876,120]
[406252151,1771661443468,-500.0,0.0003288,120]
[406252152,1771661443477,-1343.33,0.000329,2]
[406252153,1771661443487,-150.0,0.00033043,2]
[406252154,1771661443497,-799.6284652,0.00033069,2]
[406252155,1771661443507,-34914.56487139,0.00033223,2]
[406252156,1771661443517,-378.12,0.00033391,2]
[406252157,1771661443526,-151.00118991,0.00033554,2]
[406252158,1771661443536,-1276.0,0.00033601,2]
[406252159,1771661443546,-1222.063,0.00033665,2]
[406252160,1771661443556,-2466.076,0.00033665,2]
[406252161,1771661443566,-5976.0,0.00033665,2]
[406252162,1771661443575,-413.0,0.00033665,2]
[406252163,1771661443585,-162.78,0.00033937,2]
[406252164,1771661443595,-1355.671,0.00033937,2]
[406252165,1771661443605,-1039.0,0.00033937,2]
[406252166,1771661443614,-635.528,0.00033937,2]
[406252167,1771661443628,-3499.756,0.00033937,2]
[406252168,1771661443637,-268.01,0.00033937,2]
[406252169,1771661443647,-1000.0,0.00033963,7]
[406252170,1771661443656,-300.0,0.00034,120]
[406252171,1771661443667,-184.17,0.00034112,2]
[406252172,1771661443676,-1000.0,0.00034237,7]
[406252173,1771661443685,-1000.0,0.00034511,7]
[406252174,1771661443695,-151.00118998,0.00034513,2]
[406252175,1771661443705,-150.0,0.00034696,2]
[406252176,1771661443714,-1000.0,0.00034785,7]
[406252177,1771661443723,-189830.0,0.000348,2]
[406252178,1771661443732,-1343.33,0.000348,2]
[406252179,1771661443742,-889.0,0.00034902,5]
[406252180,1771661443751,-17823.28066971,0.0003498,2]
[406252181,1771661443761,-2940.0,0.00035,120]
[406252182,1771661443770,-160.0,0.00035,120]
[406252183,1771661443780,-1000.0,0.00035059,7]
[406252184,1771661443789,-600.0,0.00035278,2]
[406252185,1771661443799,-300.72,0.00035278,2]
[406252186,1771661443808,-1000.0,0.00035333,7]
[406252187,1771661443817,-666.0,0.00035399,30]
[406252188,1771661443826,-523.67330146,0.00035445,2]
[406252189,1771661443835,-5531.0,0.000355,3]
[406252190,1771661443845,-193.455929,0.00035589,120]
[406252191,1771661443855,-1000.0,0.00035607,7]
[406252192,1771661443864,-253.00517092,0.00035616,7]
[406252193,1771661443874,-151.0,0.00035697,14]
[406252194,1771661443883,-1000.0,0.00035881,14]
[406252195,1771661443893,-1300.0,0.000359,13]
[406252196,1771661443902,-300.0,0.00036,120]
[406252197,1771661443911,-1000.0,0.00036155,14]
[406252198,1771661443920,-34914.56487139,0.00036226,2]
[406252199,1771661443929,-225.47,0.000363,14]
[406252200,1771661443939,-5531.0,0.000363,5]
[406252201,1771661443948,-1343.33,0.000363,2]
[406252202,1771661443958,-2000.0,0.000364,2]
[406252203,1771661443968,-3166.37334768,0.00036408,2]
[406252204,1771661443977,-1000.0,0.00036428,14]
[406252205,1771661443986,-150.0,0.0003643,2]
[406252206,1771661443996,-799.6284652,0.00036435,2]
[406252207,1771661444005,-1276.0,0.00036601,2]
[406252208,1771661444015,-248.71350372,0.00036648,7]
[406252209,1771661444024,-1209.0,0.00036665,2]
[406252210,1771661444034,-2453.0,0.00036665,2]
[406252211,1771661444043,-5976.0,0.00036665,2]
[406252212,1771661444052,-419.07,0.000367,14]
[406252213,1771661444062,-177.06,0.000367,30]
[406252214,1771661444071,-250.82,0.000367,14]
[406252215,1771661444081,-1999.0,0.00036702,14]
[406252216,1771661444091,-2213.088,0.00036833,46]
[406252217,1771661444100,-205.233,0.00036833,46]
[406252218,1771661444109,-1338.0,0.00036937,2]
[406252219,1771661444119,-1039.0,0.00036937,2]
[406252220,1771661444128,-618.0,0.00036937,2]
[406252221,1771661444137,-3493.0,0.00036937,2]
[406252222,1771661444146,-150.0,0.00036937,2]
[406252223,1771661444155,-258.31527199,0.000372,120]
[406252224,1771661444164,-258.31527198,0.000372,120]
[406252225,1771661444174,-258.31527198,0.000372,120]
[406252226,1771661444184,-225.47,0.000374,14]
[406252227,1771661444193,-258.31527198,0.00037409,120]
[406252228,1771661444203,-809.1551485,0.000379,120]
[406252229,1771661444212,-1155.78804136,0.000379,120]
[406252230,1771661444221,-152.0012827,0.000379,120]
[406252231,1771661444231,-1343.33,0.000379,2]
[406252232,1771661444240,-300.0,0.00038,120]
[406252233,1771661444249,-150.0,0.00038252,2]
[406252234,1771661444258,-17823.28066971,0.00038259,2]
[406252235,1771661444267,-13944.75,0.00038356,30]
[406252236,1771661444277,-152.85417942,0.00038646,3]
[406252237,1771661444286,-500.0,0.00038799,8]
[406252238,1771661444296,-500.0,0.00038799,8]
[406252239,1771661444305,-500.0,0.00038799,8]
[406252240,1771661444315,-500.0,0.00038799,8]
[406252241,1771661444324,-500.0,0.00038799,8]
[406252242,1771661444334,-516.24696625,0.00038799,2]
[406252243,1771661444343,-544.36077424,0.00038799,8]
[406252244,1771661444352,-504.39683652,0.00038799,8]
[406252245,1771661444362,-512.22,0.00038799,8]
[406252246,1771661444371,-500.0,0.00038799,8]
[406252247,1771661444380,-500.0,0.00038799,8]
[406252248,1771661444390,-500.0,0.00038799,8]
[406252249,1771661444399,-500.0,0.00038799,8]
[406252250,1771661444409,-500.0,0.00038799,8]
[406252251,1771661444418,-500.0,0.00038799,8]
[406252252,1771661444428,-500.0,0.00038799,8]
[406252253,1771661444437,-500.0,0.00038799,8]
[406252254,1771661444446,-1030.8196,0.00038888,30]
[406252255,1771661444455,-419.07,0.000389,14]
[406252256,1771661444464,-177.06,0.000389,30]
[406252257,1771661444541,-250.82,0.000389,14]
[406252258,1771661444551,-260.84205391,0.00038904,5]
[406252259,1771661444561,-225.47,0.00039,14]
[406252260,1771661444570,-34914.56487139,0.00039229,2]
[406252261,1771661444579,-252.08,0.0003945,14]
[406252262,1771661444589,-1276.0,0.00039601,2]
[406252263,1771661444598,-1209.0,0.00039665,2]
[406252264,1771661444608,-2453.0,0.00039665,2]
[406252265,1771661444617,-5976.0,0.00039665,2]
[406252266,1771661444631,-799.6284652,0.00039801,2]
[406252267,1771661444641,-1114.34066364,0.00039837,2]
[406252268,1771661444651,-317.0,0.00039911,30]
[406252269,1771661444660,-512.0,0.00039911,30]
[406252270,1771661444671,-1039.0,0.00039937,2]
[406252271,1771661444681,-618.0,0.00039937,2]
[406252272,1771661444691,-3493.0,0.00039937,2]
[406252273,1771661444700,-650.41,0.0004,120]
[406252274,1771661444709,-346.04,0.0004,120]
[406252275,1771661444718,-245.04,0.0004,120]
[406252276,1771661444728,-300.0,0.0004,120]
[406252277,1771661444737,-151.0,0.0004,120]
[406252278,1771661444746,-1000.0,0.0004,120]
[406252279,1771661444756,-153.0,0.0004,120]
[406252280,1771661444765,-155.56202628,0.0004,120]
[406252281,1771661444775,-252.08,0.0004,14]
[406252282,1771661444784,-390.0,0.0004,3]
[406252283,1771661444794,-300.0,0.0004,2]
[406252284,1771661444802,-9021.87,0.0004,30]
[406252285,1771661444811,-2000.0,0.000401,2]
[406252286,1771661444822,-150.0,0.00040165,2]
[406252287,1771661444831,-772.06978495,0.00040278,120]
[406252288,1771661444840,-37281.85411756,0.00040337,5]
[406252289,1771661444849,-184.17,0.00040425,14]
[406252290,1771661444858,-300.0,0.000405,2]
[406252291,1771661444867,-434.09436665,0.000405,2]
[406252292,1771661444876,-252.08,0.0004055,14]
[406252293,1771661444885,-3166.37334768,0.00040649,28]
[406252294,1771661444895,-151.0,0.000407,120]
[406252295,1771661444904,-419.07,0.000407,14]
[406252296,1771661444913,-2587.0,0.000407,7]
[406252297,1771661444922,-177.06,0.000407,30]
[406252298,1771661444931,-250.82,0.000407,14]
[406252299,1771661444940,-153.0,0.000408,120]
[406252300,1771661444950,-87057.0,0.0004095,60]
[406252301,1771661444959,-660.80659205,0.00041,30]
[406252302,1771661444968,-225.47,0.00041,14]
[406252303,1771661444978,-184.17,0.00041012,14]
[406252304,1771661444987,-842.0,0.00041096,120]
[406252305,1771661444996,-500.0,0.000411,120]
[406252306,1771661445005,-200.0,0.000411,120]
[406252307,1771661445013,-842.0,0.0004137,120]
[406252308,1771661445022,-151.0,0.000414,120]
[406252309,1771661445032,-17823.28066971,0.00041539,15]
[406252310,1771661445041,-153.0,0.000416,120]
[406252311,1771661445050,-516.0,0.000416,25]
[406252312,1771661445060,-842.0,0.00041644,120]
[406252313,1771661445069,-3000.0,0.00041661,3]
[406252314,1771661445078,-3000.0,0.00041661,3]
[406252315,1771661445087,-3000.0,0.00041661,3]
[406252316,1771661445096,-1015.465871,0.00041661,3]
[406252317,1771661445105,-500.0,0.00041661,60]
[406252318,1771661445115,-500.0,0.00041661,60]
[406252319,1771661445124,-500.0,0.00041661,60]
[406252320,1771661445133,-500.0,0.00041661,60]
[406252321,1771661445142,-518.5,0.00041661,60]
[406252322,1771661445151,-500.0,0.00041661,60]
[406252323,1771661445160,-168.91834196,0.00041661,60]
[406252324,1771661445169,-537.6845,0.00041661,60]
[406252325,1771661445178,-500.0,0.00041661,60]
[406252326,1771661445187,-500.0,0.00041661,60]
[406252327,1771661445196,-557.5788265,0.00041661,60]
[406252328,1771661445205,-500.0,0.00041661,60]
[406252329,1771661445214,-500.0,0.00041661,60]
[406252330,1771661445224,-578.20924308,0.00041661,60]
[406252331,1771661445232,-500.0,0.00041661,60]
[406252332,1771661445241,-151.0,0.00041661,60]
[406252333,1771661445250,-500.0,0.00041661,60]
[406252334,1771661445259,-599.60298507,0.00041661,60]
[406252335,1771661445268,-500.0,0.00041661,60]
[406252336,1771661445278,-156.587,0.00041661,60]
[406252337,1771661445288,-500.0,0.00041661,60]
[406252338,1771661445297,-621.78829552,0.00041661,60]
[406252339,1771661445307,-162.380719,0.00041661,60]
[406252340,1771661445316,-500.0,0.00041661,60]
[406252341,1771661445326,-500.0,0.00041661,60]
[406252342,1771661445336,-151.0,0.00041661,60]
[406252343,1771661445345,-178.34454881,0.00041661,60]
[406252344,1771661445354,-644.79446246,0.00041661,60]
[406252345,1771661445364,-500.0,0.00041661,60]
[406252346,1771661445374,-168.3888056,0.00041661,60]
[406252347,1771661445383,-151.0,0.00041661,60]
[406252348,1771661445392,-500.0,0.00041661,60]
[406252349,1771661445402,-292.08381021,0.00041661,60]
[406252350,1771661445412,-174.61919141,0.00041661,60]
[406252351,1771661445421,-500.0,0.00041661,60]
[406252352,1771661445432,-151.0,0.00041661,60]
[406252353,1771661445442,-500.0,0.00041661,60]
[406252354,1771661445451,-181.08010149,0.00041661,60]
[406252355,1771661445460,-500.0,0.00041661,60]
[406252356,1771661445469,-152.84129386,0.00041661,60]
[406252357,1771661445477,-500.0,0.00041661,60]
[406252358,1771661445486,-187.78006525,0.00041661,60]
[406252359,1771661445495,-500.0,0.00041661,60]
[406252360,1771661445504,-250.0,0.00041661,60]
[406252361,1771661445513,-374.93516283,0.00041661,60]
[406252362,1771661445522,-500.0,0.00041661,60]
[406252363,1771661445531,-500.0,0.00041661,60]
[406252364,1771661445540,-250.0,0.00041661,60]
[406252365,1771661445550,-194.72792766,0.00041661,60]
[406252366,1771661445558,-500.0,0.00041661,60]
[406252367,1771661445567,-500.0,0.00041661,60]
[406252368,1771661445576,-250.0,0.00041661,60]
[406252369,1771661445585,-305.00351474,0.00041661,60]
[406252370,1771661445594,-500.0,0.00041661,60]
[406252371,1771661445603,-500.0,0.00041661,60]
[406252372,1771661445613,-250.0,0.00041661,60]
[406252373,1771661445624,-500.0,0.00041661,60]
[406252374,1771661445634,-500.0,0.00041661,60]
[406252375,1771661445643,-250.0,0.00041661,60]
[406252376,1771661445652,-500.0,0.00041661,60]
[406252377,1771661445662,-500.0,0.00041661,60]
[406252378,1771661445672,-250.0,0.00041661,60]